Workbook

Sheet CRONOGRAMA
C1: CRONOGRAMA FÍSICO FINANCEIRO | AC1: UNAEN-FF-003
AC3: Revisão: 00 | AD3: Data: 11/05/2017
A4: SESI - SERVIÇO SOCIAL DA INDUSTRIA - DR/MT
A5: UNIDADE OPERACIONAL: SESI ESCOLA CUIABA | D5: ENDEREÇO: AV. OÁTOMO CANAVARROS, 1079, BAIRRO BELA VISTA CIDADE: CUIABÁ-MT
A6: ='[1]PLAN RESUMO'!$A$9:$E$9 -> CONSTRUTORA: | D6: =CONCATENATE(" VALOR: ","R$ ",TEXT(SUM(C45),"#.##0,00")) -> VALOR: R$ 4.760.891,11 | H6: PRAZO: 12 MESES
A7: ='[1]PLAN RESUMO'!$A$10:$E$10 -> RESPONSÁVEL TÉCNICO:
A9: IMPLANTAÇÃO
A11: ITEM | B11: DESCRIÇÃO | C11: ETAPA TOTAL | E11: 1 MÊS | G11: 2 MESES | I11: 3 MESES | K11: 4 MESES | M11: 5 MESES | O11: 6 MESES | Q11: 7 MESES | S11: 8 MESES | U11: 9 MESES | W11: 10 MESES | Y11: 11 MESES | AA11: 12 MESES | AC11: TOTAL
C12: (R$) | D12: (%) | E12: (R$) | F12: (%) | G12: (R$) | H12: (%) | I12: (R$) | J12: (%) | K12: (R$) | L12: (%) | M12: (R$) | N12: (%) | O12: (R$) | P12: (%) | Q12: (R$) | R12: (%) | S12: (R$) | T12: (%) | U12: (R$) | V12: (%) | W12: (R$) | X12: (%) | Y12: (R$) | Z12: (%) | AA12: (R$) | AB12: (%) | AC12: (R$) | AD12: (%)
A13: 1.1 | B13: DEMOLIÇÕES E RETIRADAS | C13: 178445.87 | D13: =C13/$C$45*100 -> 3.748161129 | E13: =F13*$C13/100 -> 0 | G13: =H13*$C13/100 -> 0 | I13: =J13*$C13/100 -> 0 | K13: =L13*$C13/100 -> 0 | M13: =N13*$C13/100 -> 89222.935 | N13: 50 | O13: =P13*$C13/100 -> 89222.935 | P13: 50 | Q13: =R13*$C13/100 -> 0 | S13: =T13*$C13/100 -> 0 | U13: =V13*$C13/100 -> 0 | W13: =X13*$C13/100 -> 0 | Y13: =Z13*$C13/100 -> 0 | AA13: =AB13*$C13/100 -> 0 | AC13: =AD13*$C13/100 -> 178445.87 | AD13: =N13+L13+J13+H13+F13+P13+R13+T13+V13+X13+Z13+AB13 -> 100
A14: 1.2 | B14: CANTEIRO DE OBRAS | C14: 295848.85 | D14: 6.214148637 | E14: =F14*$C14/100 -> 236679.08 | F14: 80 | G14: =H14*$C14/100 -> 591.6977 | H14: 0.2 | I14: =J14*$C14/100 -> 1479.24425 | J14: 0.5 | K14: =L14*$C14/100 -> 3846.03505 | L14: 1.3 | M14: 7396.22125 | N14: 2.5 | O14: 7396.22125 | P14: 2.5 | Q14: =R14*$C14/100 -> 7396.22125 | R14: 2.5 | S14: 7396.22125 | T14: 2.5 | U14: 7396.22125 | V14: 2.5 | W14: 7396.22125 | X14: 2.5 | Y14: 7396.22125 | Z14: 2.5 | AA14: 1479.24425 | AB14: 0.5 | AC14: =AD14*$C14/100 -> 295848.85 | AD14: =N14+L14+J14+H14+F14+P14+R14+T14+V14+X14+Z14+AB14 -> 100
A15: 1.3 | B15: ADMINISTRAÇÃO | C15: 770009.35 | D15: 16.17363918 | E15: =F15*$C15/100 -> 14784.17952 | F15: 1.92 | G15: =H15*$C15/100 -> 9317.113135 | H15: 1.21 | I15: =J15*$C15/100 -> 30646.37213 | J15: 3.98 | K15: =L15*$C15/100 -> 59675.72462 | L15: 7.75 | M15: 75460.9163 | N15: 9.8 | O15: 72534.88077 | P15: 9.42 | Q15: =R15*$C15/100 -> 138601.683 | R15: 18 | S15: 115501.4025 | T15: 15 | U15: 112036.3604 | V15: 14.55 | W15: 77000.935 | X15: 10 | Y15: 43428.52734 | Z15: 5.64 | AA15: 21021.25526 | AB15: 2.73 | AC15: 770009.35 | AD15: 100
A16: 1.4 | B16: TERRAPLENAGEM | C16: 30190.81 | D16: 0.6341419978 | E16: 0 | G16: 0 | I16: 0 | K16: 0 | M16: 0 | O16: 15095.405 | P16: 50 | Q16: 15095.405 | R16: 50 | S16: 0 | U16: 0 | W16: 0 | Y16: 0 | AA16: 0 | AC16: 30190.81 | AD16: 100
A17: 1.5 | B17: FUNDAÇÃO | C17: 178308.17 | D17: 3.745268814 | E17: 0 | G17: 0 | I17: 0 | K17: 0 | M17: 0 | O17: 0 | Q17: 71323.268 | R17: 40 | S17: 53492.451 | T17: 30 | U17: 53492.451 | V17: 30 | W17: 0 | Y17: 0 | AA17: 0 | AC17: 178308.17 | AD17: 100
A18: 1.6 | B18: IMPERMEABILIZAÇÃO | C18: 0 | D18: 0 | E18: 0 | G18: 0 | I18: 0 | K18: 0 | M18: 0 | O18: 0 | Q18: 0 | S18: 0 | U18: 0 | W18: 0 | Y18: 0 | AA18: 0 | AC18: 0 | AD18: 0
A19: 1.7 | B19: ESTRUTURA DE CONCRETO ARMADO | C19: 20433.84 | D19: 0.4292020029 | E19: 0 | G19: 0 | I19: 0 | K19: 0 | M19: 0 | O19: 0 | Q19: 0 | S19: 20433.84 | T19: 100 | U19: 0 | W19: 0 | Y19: 0 | AA19: 0 | AC19: 20433.84 | AD19: =N19+L19+J19+H19+F19+P19+R19+T19+V19+X19+Z19+AB19 -> 100
A20: 1.8 | B20: ALVENARIA E PAINÉIS | C20: 40076.51 | D20: 0.8417858984 | E20: 0 | G20: 0 | I20: 0 | K20: 0 | M20: 0 | O20: 0 | Q20: 0 | S20: 20038.255 | T20: 50 | U20: 20038.255 | V20: 50 | W20: 0 | Y20: 0 | AA20: 0 | AC20: 40076.51 | AD20: 100
A21: 1.9 | B21: ESTRUTURA METÁLICA | C21: 22741.86 | D21: 0.4776807424 | E21: 0 | G21: 0 | I21: 0 | K21: 0 | M21: 0 | O21: 0 | Q21: 0 | S21: 0 | U21: 22741.86 | V21: 100 | W21: 0 | Y21: 0 | AA21: 0 | AC21: 22741.86 | AD21: 100
A22: 1.10 | B22: COBERTURA | C22: 29613.21 | D22: 0.6220098153 | E22: 0 | G22: 0 | I22: 0 | K22: 0 | M22: 0 | O22: 0 | Q22: 0 | S22: 0 | U22: 0 | W22: 29613.21 | X22: 100 | Y22: 0 | AA22: 0 | AC22: 29613.21 | AD22: 100
A23: 1.11 | B23: ESQUADRIAS | C23: 121975.22 | D23: 2.56202499 | E23: 0 | G23: 0 | I23: 0 | K23: 0 | M23: 0 | O23: 0 | Q23: 0 | S23: 60987.61 | T23: 50 | U23: 60987.61 | V23: 50 | W23: 0 | Y23: 0 | AA23: 0 | AC23: 121975.22 | AD23: 100
A24: 1.12 | B24: PISOS | C24: 406949.71 | D24: 8.547763446 | E24: 0 | G24: 0 | I24: 0 | K24: 0 | M24: 0 | O24: 0 | Q24: 0 | S24: 203474.855 | T24: 50 | U24: 203474.855 | V24: 50 | W24: 0 | Y24: 0 | AA24: 0 | AC24: 406949.71 | AD24: 100
A25: 1.13 | B25: REVESTIMENTO | C25: 0 | D25: 0 | E25: 0 | G25: 0 | I25: 0 | K25: 0 | M25: 0 | O25: 0 | Q25: 0 | S25: 0 | U25: 0 | V25: 50 | W25: 0 | X25: 50 | Y25: 0 | AA25: 0 | AC25: 0 | AD25: 100
A26: 1.14 | B26: GRANITO | C26: 0 | D26: 0 | E26: 0 | G26: 0 | I26: 0 | K26: 0 | M26: 0 | O26: 0 | Q26: 0 | S26: 0 | U26: 0 | W26: 0 | X26: 100 | Y26: 0 | AA26: 0 | AC26: 0 | AD26: 100
A27: 1.15 | B27: FORROS | C27: 0 | D27: 0 | E27: 0 | G27: 0 | I27: 0 | K27: 0 | M27: 0 | O27: 0 | Q27: 0 | S27: 0 | U27: 0 | W27: 0 | Y27: 0 | AA27: 0 | AC27: 0 | AD27: 0
A28: 1.16 | B28: PINTURA | C28: 90305.95 | D28: 1.896828722 | E28: 0 | G28: 0 | I28: 0 | K28: 0 | M28: 0 | O28: 0 | Q28: 0 | S28: 0 | U28: 0 | W28: 45152.975 | X28: 50 | Y28: 45152.975 | Z28: 50 | AA28: 0 | AC28: 90305.95 | AD28: 100
A29: 1.17 | B29: CALÇAMENTO, PÁTIO E PASSARELAS | C29: 422670.81 | D29: 8.877976837 | E29: 0 | G29: 0 | I29: 0 | K29: 0 | M29: 0 | O29: 0 | Q29: 105667.7025 | R29: 25 | S29: 105667.7025 | T29: 25 | U29: 105667.7025 | V29: 25 | W29: 105667.7025 | X29: 25 | Y29: 0 | AA29: 0 | AC29: 422670.81 | AD29: 100
A30: 1.18 | B30: SERVIÇOS COMPLEMENTARES | C30: 57610.42 | D30: 1.210076405 | E30: 0 | G30: 0 | I30: 0 | K30: 0 | M30: 0 | O30: 0 | Q30: 0 | S30: 0 | U30: 0 | W30: 28805.21 | X30: 50 | Y30: 28805.21 | Z30: 50 | AA30: 0 | AC30: 57610.42 | AD30: 100
A31: 1.19 | B31: INSTALAÇÕES SPDA (CAIXA DÁGUA) | C31: 3605.66 | D31: 0.07573498147 | E31: 0 | G31: 0 | I31: 0 | K31: 0 | M31: 0 | O31: 0 | Q31: 0 | S31: 0 | U31: 0 | W31: 0 | Y31: 3605.66 | Z31: 100 | AA31: 0 | AC31: 3605.66 | AD31: 100
A32: 1.20 | B32: INSTALAÇÕES DE COMBATE A INCÊNDIO | C32: 42987.93 | D32: 0.9029387358 | E32: 0 | G32: 0 | I32: 4298.793 | J32: 10 | K32: 4298.793 | L32: 10 | M32: 4298.793 | N32: 10 | O32: 4298.793 | P32: 10 | Q32: 4298.793 | R32: 10 | S32: 4298.793 | T32: 10 | U32: 4298.793 | V32: 10 | W32: 4298.793 | X32: 10 | Y32: 4298.793 | Z32: 10 | AA32: 4298.793 | AB32: 10 | AC32: 42987.93 | AD32: 100
A33: 1.21 | B33: INSTALAÇÕES ELÉTRICAS | C33: 615858 | D33: 12.9357716 | E33: 0 | G33: 0 | I33: 61585.8 | J33: 10 | K33: 61585.8 | L33: 10 | M33: 61585.8 | N33: 10 | O33: 61585.8 | P33: 10 | Q33: 61585.8 | R33: 10 | S33: 61585.8 | T33: 10 | U33: 61585.8 | V33: 10 | W33: 61585.8 | X33: 10 | Y33: 61585.8 | Z33: 10 | AA33: 61585.8 | AB33: 10 | AC33: 615858 | AD33: 100
A34: 1.22 | B34: INSTALAÇÕES DE LÓGICA E TELEFONICA | C34: 152384.79 | D34: 3.200761926 | E34: 0 | G34: 0 | I34: 0 | K34: 0 | M34: 0 | O34: 0 | Q34: 0 | S34: 30476.958 | T34: 20 | U34: 30476.958 | V34: 20 | W34: 30476.958 | X34: 20 | Y34: 30476.958 | Z34: 20 | AA34: 30476.958 | AB34: 20 | AC34: 152384.79 | AD34: 100
A35: 1.23 | B35: CLIMATIZAÇÃO | C35: 249762.82 | D35: 5.246135949 | E35: 0 | G35: 0 | I35: 0 | K35: 0 | M35: 0 | O35: 0 | Q35: 0 | S35: 49952.564 | T35: 20 | U35: 49952.564 | V35: 20 | W35: 49952.564 | X35: 20 | Y35: 49952.564 | Z35: 20 | AA35: 49952.564 | AB35: 20 | AC35: 249762.82 | AD35: 100
A36: 1.24 | B36: INFRAESTRUTURA PARA INSTALAÇÃO DE ÁUDIO E VÍDEO | C36: 0 | D36: 0 | E36: 0 | G36: 0 | I36: 0 | K36: 0 | M36: 0 | O36: 0 | Q36: 0 | S36: 0 | U36: 0 | W36: 0 | Y36: 0 | AA36: 0 | AC36: 0 | AD36: 0
A37: 1.25 | B37: INSTALAÇÕES HIDROSANITÁRIAS | C37: 248471.04 | D37: 5.219002793 | E37: 0 | G37: 0 | I37: 24847.104 | J37: 10 | K37: 24847.104 | L37: 10 | M37: 24847.104 | N37: 10 | O37: 24847.104 | P37: 10 | Q37: 24847.104 | R37: 10 | S37: 24847.104 | T37: 10 | U37: 24847.104 | V37: 10 | W37: 24847.104 | X37: 10 | Y37: 24847.104 | Z37: 10 | AA37: 24847.104 | AB37: 10 | AC37: 248471.04 | AD37: 100
A38: 1.26 | B38: DRENAGEM | C38: 473394.94 | D38: 9.943410363 | E38: 0 | G38: 0 | I38: 47339.494 | J38: 10 | K38: 47339.494 | L38: 10 | M38: 47339.494 | N38: 10 | O38: 47339.494 | P38: 10 | Q38: 47339.494 | R38: 10 | S38: 47339.494 | T38: 10 | U38: 47339.494 | V38: 10 | W38: 47339.494 | X38: 10 | Y38: 47339.494 | Z38: 10 | AA38: 47339.494 | AB38: 10 | AC38: 473394.94 | AD38: 100
A39: 1.27 | B39: GLP (BLOCO B) | C39: 0 | D39: 0 | E39: 0 | G39: 0 | I39: 0 | K39: 0 | M39: 0 | O39: 0 | Q39: 0 | S39: 0 | U39: 0 | W39: 0 | Y39: 0 | AA39: 0 | AC39: 0 | AD39: 0
A40: 1.28 | B40: LOUÇAS E METAIS | C40: 2580.75 | D40: =C40/$C$45*100 -> 0.05420728894 | E40: 0 | G40: 0 | I40: 0 | K40: 0 | M40: 0 | O40: 0 | Q40: 0 | S40: 0 | U40: 0 | W40: 2580.75 | X40: 100 | Y40: 0 | AA40: 0 | AC40: 2580.75 | AD40: 100
A41: 1.29 | B41: ACESSIBILIDADE | C41: 116259.43 | D41: 2.441967844 | E41: 0 | G41: 0 | I41: 0 | K41: 0 | M41: 0 | O41: 0 | Q41: 0 | S41: 0 | U41: 29064.8575 | V41: 25 | W41: 29064.8575 | X41: 25 | Y41: 29064.8575 | Z41: 25 | AA41: 29064.8575 | AB41: 25 | AC41: 116259.43 | AD41: 100
A42: 1.30 | B42: SEGURANÇA PATRIMONIAL | C42: 100611.75 | D42: 2.113296601 | E42: 0 | G42: 0 | I42: 0 | K42: 0 | M42: 0 | O42: 0 | Q42: 0 | S42: 0 | U42: 25152.9375 | V42: 25 | W42: 25152.9375 | X42: 25 | Y42: 25152.9375 | Z42: 25 | AA42: 25152.9375 | AB42: 25 | AC42: 100611.75 | AD42: 100
A43: 1.31 | B43: LIMPEZA CONTÍNUA DA OBRA | C43: 68088.24 | D43: 1.430157473 | E43: 5671.750392 | F43: 8.33 | G43: 5671.750392 | H43: 8.33 | I43: 5671.750392 | J43: 8.33 | K43: =L43*C43/100 -> 5671.750392 | L43: 8.33 | M43: 5671.750392 | N43: 8.33 | O43: 5671.750392 | P43: 8.33 | Q43: 5671.750392 | R43: 8.33 | S43: 5671.750392 | T43: 8.33 | U43: 5671.750392 | V43: 8.33 | W43: 5671.750392 | X43: 8.33 | Y43: 5671.750392 | Z43: 8.33 | AA43: 5698.985688 | AB43: 8.37 | AC43: 68088.24 | AD43: 100
A44: 1.32 | B44: LIMPEZA FINAL DA OBRA | C44: 21705.18 | D44: 0.4559058273 | E44: 0 | F44: 0 | G44: 0 | I44: 0 | K44: =L44*C44/100 -> 0 | M44: 0 | O44: 0 | Q44: 0 | S44: 0 | U44: 15193.626 | V44: 70 | W44: 0 | Y44: 0 | AA44: 6511.554 | AB44: 30 | AC44: 21705.18 | AD44: 100
B45: TOTAL | C45: =SUM(C13:C44) -> 4760891.11 | D45: =SUM(D13:D44) -> 100 | E45: =SUM(E13:E44) -> 257135.0099 | F45: =E45/$C45*100 -> 5.400984899 | G45: =SUM(G13:G44) -> 15580.56123 | H45: =G45/$C45*100 -> 0.3272614489 | I45: =SUM(I13:I44) -> 175868.5578 | J45: =I45/$C45*100 -> 3.694026049 | K45: =SUM(K13:K44) -> 207264.7011 | L45: =K45/$C45*100 -> 4.353485435 | M45: =SUM(M13:M44) -> 315823.0139 | N45: =M45/$C45*100 -> 6.633695387 | O45: =SUM(O13:O44) -> 327992.3834 | P45: =O45/$C45*100 -> 6.889306557 | Q45: =SUM(Q13:Q44) -> 481827.2211 | R45: =Q45/$C45*100 -> 10.12052597 | S45: =SUM(S13:S44) -> 811164.8006 | T45: =S45/$C45*100 -> 17.03808766 | U45: =SUM(U13:U44) -> 879419.1996 | V45: =U45/$C45*100 -> 18.47173521 | W45: =SUM(W13:W44) -> 574607.2621 | X45: =W45/$C45*100 -> 12.06932166 | Y45: =SUM(Y13:Y44) -> 406778.852 | Z45: =Y45/$C45*100 -> 8.544174664 | AA45: =SUM(AA13:AA44) -> 307429.5472 | AB45: =AA45/$C45*100 -> 6.457395057 | AC45: =SUM(AC13:AC44) -> 4760891.11 | AD45: =AC45/$C45*100 -> 100
B46: TOTAL ACUMULADO | E46: =E45 -> 257135.0099 | F46: =E46/$C45*100 -> 5.400984899 | G46: =G45+E46 -> 272715.5711 | H46: =G46/$C45*100 -> 5.728246348 | I46: =I45+G46 -> 448584.1289 | J46: =I46/$C45*100 -> 9.422272397 | K46: =K45+I46 -> 655848.83 | L46: =K46/$C45*100 -> 13.77575783 | M46: =M45+K46 -> 971671.8439 | N46: =M46/$C45*100 -> 20.40945322 | O46: =O45+M46 -> 1299664.227 | P46: =O46/$C45*100 -> 27.29875978 | Q46: =Q45+O46 -> 1781491.448 | R46: =Q46/$C45*100 -> 37.41928575 | S46: =S45+Q46 -> 2592656.249 | T46: =S46/$C45*100 -> 54.4573734 | U46: =U45+S46 -> 3472075.449 | V46: =U46/$C45*100 -> 72.92910862 | W46: =W45+U46 -> 4046682.711 | X46: =W46/$C45*100 -> 84.99843028 | Y46: =Y45+W46 -> 4453461.563 | Z46: =Y46/$C45*100 -> 93.54260494 | AA46: =AA45+Y46 -> 4760891.11 | AB46: =AA46/$C45*100 -> 100
C49: CRONOGRAMA FÍSICO FINANCEIRO | AC49: UNAEN-FF-003
AC51: Revisão: 00 | AD51: Data: 11/05/2017
A52: SESI - SERVIÇO SOCIAL DA INDUSTRIA - DR/MT
A53: =A5 -> UNIDADE OPERACIONAL: SESI ESCOLA CUIABA | D53: =D5 -> ENDEREÇO: AV. OÁTOMO CANAVARROS, 1079, BAIRRO BELA VISTA CIDADE: CUIABÁ-MT
A54: ='[1]PLAN RESUMO'!$A$9:$E$9 -> CONSTRUTORA: | D54: =CONCATENATE(" VALOR: ","R$ ",TEXT(SUM(C93),"#.##0,00")) -> VALOR: R$ 2.520.715,58 | H54: =H6 -> PRAZO: 12 MESES
A55: ='[1]PLAN RESUMO'!$A$10:$E$10 -> RESPONSÁVEL TÉCNICO:
A57: BLOCO A
A59: ITEM | B59: DESCRIÇÃO | C59: ETAPA TOTAL | E59: 1 MÊS | G59: 2 MESES | I59: 3 MESES | K59: 4 MESES | M59: 5 MESES | O59: 6 MESES | Q59: 7 MESES | S59: 8 MESES | U59: 9 MESES | W59: 10 MESES | Y59: 11 MESES | AA59: 12 MESES | AC59: TOTAL
C60: (R$) | D60: (%) | E60: (R$) | F60: (%) | G60: (R$) | H60: (%) | I60: (R$) | J60: (%) | K60: (R$) | L60: (%) | M60: (R$) | N60: (%) | O60: (R$) | P60: (%) | Q60: (R$) | R60: (%) | S60: (R$) | T60: (%) | U60: (R$) | V60: (%) | W60: (R$) | X60: (%) | Y60: (R$) | Z60: (%) | AA60: (R$) | AB60: (%) | AC60: (R$) | AD60: (%)
A61: 2.1 | B61: DEMOLIÇÕES E RETIRADAS | C61: 49460.85 | D61: =C61/$C$93*100 -> 1.962174963 | E61: =F61*$C61/100 -> 0 | G61: =H61*$C61/100 -> 24730.425 | H61: 50 | I61: =J61*$C61/100 -> 24730.425 | J61: 50 | K61: =L61*$C61/100 -> 0 | M61: =N61*$C61/100 -> 0 | O61: =P61*$C61/100 -> 0 | Q61: =R61*$C61/100 -> 0 | S61: =T61*$C61/100 -> 0 | U61: =V61*$C61/100 -> 0 | W61: =X61*$C61/100 -> 0 | Y61: =Z61*$C61/100 -> 0 | AA61: =AB61*$C61/100 -> 0 | AC61: =AD61*$C61/100 -> 49460.85 | AD61: =N61+L61+J61+H61+F61+P61+R61+T61+V61+X61+Z61+AB61 -> 100
A62: 2.2 | B62: CANTEIRO DE OBRAS | C62: 0 | D62: =C62/$C$93*100 -> 0 | E62: =F62*$C62/100 -> 0 | F62: 0 | G62: =H62*$C62/100 -> 0 | I62: =J62*$C62/100 -> 0 | K62: =L62*$C62/100 -> 0 | M62: =N62*$C62/100 -> 0 | O62: =P62*$C62/100 -> 0 | Q62: =R62*$C62/100 -> 0 | S62: =T62*$C62/100 -> 0 | U62: 0 | W62: 0 | Y62: 0 | AA62: 0 | AC62: =AD62*$C62/100 -> 0 | AD62: =N62+L62+J62+H62+F62+P62+R62+T62+V62+X62+Z62+AB62 -> 0
A63: 2.3 | B63: ADMINISTRAÇÃO | C63: 0 | D63: 0 | E63: 0 | F63: 0 | G63: =H63*$C63/100 -> 0 | I63: =J63*$C63/100 -> 0 | K63: =L63*$C63/100 -> 0 | M63: =N63*$C63/100 -> 0 | O63: =P63*$C63/100 -> 0 | Q63: =R63*$C63/100 -> 0 | S63: =T63*$C63/100 -> 0 | U63: 0 | W63: 0 | Y63: 0 | AA63: 0 | AC63: =AD63*$C63/100 -> 0 | AD63: 0
A64: 2.4 | B64: TERRAPLENAGEM | C64: 0 | D64: 0 | E64: 0 | F64: 0 | G64: 0 | I64: 0 | K64: 0 | M64: 0 | O64: 0 | Q64: 0 | S64: 0 | U64: 0 | W64: 0 | Y64: 0 | AA64: 0 | AC64: 0 | AD64: 0
A65: 2.5 | B65: FUNDAÇÃO | C65: 157727.85 | D65: 6.257264852 | E65: 0 | G65: 0 | I65: 0 | K65: 157727.85 | L65: 100 | M65: 0 | O65: 0 | Q65: 0 | S65: 0 | U65: 0 | W65: 0 | Y65: 0 | AA65: 0 | AC65: 157727.85 | AD65: 100
A66: 2.6 | B66: IMPERMEABILIZAÇÃO | C66: 5129 | D66: 0.2034739675 | E66: 0 | F66: 0 | G66: 0 | I66: 0 | K66: 5129 | L66: 100 | M66: 0 | O66: 0 | Q66: 0 | S66: 0 | U66: 0 | W66: 0 | Y66: 0 | AA66: 0 | AC66: 5129 | AD66: 100
A67: 2.7 | B67: ESTRUTURA DE CONCRETO ARMADO | C67: 180336.85 | D67: 7.1541927 | E67: 0 | G67: 0 | I67: 0 | K67: 180336.85 | L67: 100 | M67: 0 | O67: 0 | Q67: 0 | S67: 0 | U67: 0 | W67: 0 | Y67: 0 | AA67: 0 | AC67: 180336.85 | AD67: 100
A68: 2.8 | B68: ALVENARIA E PAINÉIS | C68: 69272.01 | D68: 2.748108932 | E68: 0 | F68: 0 | G68: 0 | I68: 0 | K68: 0 | M68: 0 | O68: 69272.01 | P68: 100 | Q68: 0 | S68: 0 | U68: 0 | W68: 0 | Y68: 0 | AA68: 0 | AC68: 69272.01 | AD68: 100
A69: 2.9 | B69: ESTRUTURA METÁLICA | C69: 520689.75 | D69: 20.65642606 | E69: 0 | G69: 104137.95 | H69: 20 | I69: 104137.95 | J69: 20 | K69: 104137.95 | L69: 20 | M69: 208275.9 | N69: 40 | O69: 0 | Q69: 0 | S69: 0 | U69: 0 | W69: 0 | Y69: 0 | AA69: 0 | AC69: 520689.75 | AD69: 100
A70: 2.10 | B70: COBERTURA | C70: 239649.82 | D70: 9.507213821 | E70: 0 | F70: 0 | G70: 0 | I70: 0 | K70: 0 | M70: 0 | O70: 239649.82 | P70: 100 | Q70: 0 | S70: 0 | U70: 0 | W70: 0 | Y70: 0 | AA70: 0 | AC70: 239649.82 | AD70: 100
A71: 2.11 | B71: ESQUADRIAS | C71: 255137.08 | D71: 10.12161317 | E71: 0 | F71: 0 | G71: 0 | I71: 0 | K71: 0 | M71: 0 | O71: 127568.54 | P71: 50 | Q71: 127568.54 | R71: 50 | S71: 0 | U71: 0 | W71: 0 | Y71: 0 | AA71: 0 | AC71: 255137.08 | AD71: 100
A72: 2.12 | B72: PISOS | C72: 208753.6 | D72: 8.281521392 | E72: 0 | F72: 0 | G72: 0 | I72: 0 | K72: 0 | M72: 0 | O72: 0 | Q72: 208753.6 | R72: 100 | S72: 0 | U72: 0 | W72: 0 | Y72: 0 | AA72: 0 | AC72: 208753.6 | AD72: 100
A73: 2.13 | B73: REVESTIMENTO | C73: 318561.15 | D73: 12.63772686 | E73: 0 | F73: 0 | G73: 0 | I73: 0 | K73: 0 | M73: 0 | O73: 0 | Q73: 318561.15 | R73: 100 | S73: 0 | U73: 0 | W73: 0 | Y73: 0 | AA73: 0 | AC73: 318561.15 | AD73: 100
A74: 2.14 | B74: GRANITO | C74: 65886.9 | D74: 2.613817303 | E74: 0 | F74: 0 | G74: 0 | I74: 0 | K74: 0 | M74: 0 | O74: 0 | Q74: 65886.9 | R74: 100 | S74: 0 | U74: 0 | W74: 0 | Y74: 0 | AA74: 0 | AC74: 65886.9 | AD74: 100
A75: 2.15 | B75: FORROS | C75: 128122.23 | D75: 5.082772171 | E75: 0 | F75: 0 | G75: 0 | I75: 0 | K75: 0 | M75: 0 | O75: 0 | Q75: 0 | S75: 128122.23 | T75: 100 | U75: 0 | W75: 0 | Y75: 0 | AA75: 0 | AC75: 128122.23 | AD75: 100
A76: 2.16 | B76: PINTURA | C76: 73659.75 | D76: 2.92217617 | E76: 0 | F76: 0 | G76: 0 | I76: 0 | K76: 0 | M76: 0 | O76: 0 | Q76: 0 | S76: 73659.75 | T76: 100 | U76: 0 | W76: 0 | Y76: 0 | AA76: 0 | AC76: 73659.75 | AD76: 100
A77: 2.17 | B77: CALÇAMENTO, PÁTIO E PASSARELAS | C77: 2612.49 | D77: 0.1036408082 | E77: 0 | F77: 0 | G77: 0 | I77: 0 | K77: 0 | M77: 0 | O77: 0 | Q77: 0 | S77: 2612.49 | T77: 100 | U77: 0 | W77: 0 | Y77: 0 | AA77: 0 | AC77: 2612.49 | AD77: 100
A78: 2.18 | B78: SERVIÇOS COMPLEMENTARES | C78: 8904.99 | D78: 0.3532723037 | E78: 0 | F78: 0 | G78: 0 | I78: 0 | K78: 0 | M78: 0 | O78: 0 | Q78: 8904.99 | R78: 100 | S78: 0 | U78: 0 | W78: 0 | Y78: 0 | AA78: 0 | AC78: 8904.99 | AD78: 100
A79: 2.19 | B79: INSTALAÇÕES SPDA | C79: 39234.26 | D79: 1.556473103 | E79: 0 | F79: 0 | G79: 0 | I79: 0 | K79: 0 | M79: 0 | O79: 0 | Q79: 39234.26 | R79: 100 | S79: 0 | U79: 0 | W79: 0 | Y79: 0 | AA79: 0 | AC79: 39234.26 | AD79: 100
A80: 2.20 | B80: INSTALAÇÕES DE COMBATE A INCÊNDIO | C80: 0 | D80: 0 | E80: 0 | F80: 0 | G80: 0 | I80: 0 | K80: 0 | M80: 0 | O80: 0 | Q80: 0 | S80: 0 | U80: 0 | W80: 0 | Y80: 0 | AA80: 0 | AC80: 0 | AD80: 0
A81: 2.21 | B81: INSTALAÇÕES ELÉTRICAS | C81: 138737.35 | D81: 5.503887511 | E81: 0 | F81: 0 | G81: 0 | I81: 0 | K81: 27747.47 | L81: 20 | M81: 27747.47 | N81: 20 | O81: 27747.47 | P81: 20 | Q81: 27747.47 | R81: 20 | S81: 27747.47 | T81: 20 | U81: 0 | W81: 0 | Y81: 0 | AA81: 0 | AC81: 138737.35 | AD81: 100
A82: 2.22 | B82: INSTALAÇÕES DE LÓGICA E TELEFONICA | C82: 0 | D82: 0 | E82: 0 | F82: 0 | G82: 0 | I82: 0 | K82: 0 | M82: 0 | O82: 0 | Q82: 0 | S82: 0 | U82: 0 | W82: 0 | Y82: 0 | AA82: 0 | AC82: 0 | AD82: 0
A83: 2.23 | B83: CLIMATIZAÇÃO | C83: 0 | D83: 0 | E83: 0 | F83: 0 | G83: 0 | I83: 0 | K83: 0 | M83: 0 | O83: 0 | Q83: 0 | S83: 0 | U83: 0 | W83: 0 | Y83: 0 | AA83: 0 | AC83: 0 | AD83: 0
A84: 2.24 | B84: INFRAESTRUTURA PARA INSTALAÇÃO DE ÁUDIO E VÍDEO | C84: 16689.12 | D84: 0.6620786626 | E84: 0 | F84: 0 | G84: 0 | I84: 0 | K84: 0 | M84: 0 | O84: 0 | Q84: 8344.56 | R84: 50 | S84: 8344.56 | T84: 50 | U84: 0 | W84: 0 | Y84: 0 | AA84: 0 | AC84: 16689.12 | AD84: 100
A85: 2.25 | B85: INSTALAÇÕES HIDROSANITÁRIAS | C85: 0 | D85: 0 | E85: 0 | F85: 0 | G85: 0 | I85: 0 | K85: 0 | M85: 0 | O85: 0 | Q85: 0 | S85: 0 | U85: 0 | W85: 0 | Y85: 0 | AA85: 0 | AC85: 0 | AD85: 0
A86: 2.26 | B86: DRENAGEM | C86: 0 | D86: 0 | E86: 0 | F86: 0 | G86: 0 | I86: 0 | K86: 0 | M86: 0 | N86: 100 | O86: 0 | Q86: 0 | S86: 0 | U86: 0 | W86: 0 | Y86: 0 | AA86: 0 | AC86: 0 | AD86: 100
A87: 2.27 | B87: GLP (BLOCOB) | C87: 0 | D87: 0 | E87: 0 | F87: 0 | G87: 0 | I87: 0 | K87: 0 | M87: 0 | O87: 0 | Q87: 0 | S87: 0 | U87: 0 | W87: 0 | Y87: 0 | AA87: 0 | AC87: 0 | AD87: 0
A88: 2.28 | B88: LOUÇAS E METAIS | C88: 42150.53 | D88: 1.672165251 | E88: 0 | F88: 0 | G88: 0 | I88: 0 | K88: 0 | M88: 0 | O88: 0 | Q88: 21075.265 | R88: 50 | S88: 21075.265 | T88: 50 | U88: 0 | W88: 0 | Y88: 0 | AA88: 0 | AC88: 42150.53 | AD88: 100
A89: 2.29 | B89: ACESSIBILIDADE | C89: 0 | D89: 0 | E89: 0 | F89: 0 | G89: 0 | I89: 0 | K89: 0 | M89: 0 | O89: 0 | Q89: 0 | S89: 0 | U89: 0 | W89: 0 | Y89: 0 | AA89: 0 | AC89: 0 | AD89: 0
A90: 2.30 | B90: SEGURANÇA PATRIMONIAL | C90: 0 | D90: 0 | E90: 0 | F90: 0 | G90: 0 | I90: 0 | K90: 0 | M90: 0 | O90: =P90*$C90/100 -> 0 | Q90: 0 | S90: 0 | U90: 0 | W90: 0 | Y90: 0 | AA90: 0 | AC90: 0 | AD90: =N90+L90+J90+H90+F90+P90+R90+T90+V90+X90+Z90+AB90 -> 0
A91: 2.31 | B91: LIMPEZA CONTÍNUA DA OBRA | C91: 0 | D91: 0 | E91: 0 | F91: 0 | G91: 0 | I91: 0 | K91: =L91*C91/100 -> 0 | M91: 0 | O91: 0 | Q91: 0 | R91: 100 | S91: 0 | U91: 0 | W91: 0 | Y91: 0 | AA91: 0 | AC91: =AD91*$C91/100 -> 0 | AD91: 100
A92: 2.32 | B92: LIMPEZA FINAL DA OBRA | C92: 0 | D92: 0 | F92: 0
B93: TOTAL | C93: =SUM(C61:C92) -> 2520715.58 | D93: =SUM(D61:D92) -> 100 | E93: =SUM(E61:E92) -> 0 | F93: =E93/$C93*100 -> 0 | G93: =SUM(G61:G92) -> 128868.375 | H93: =G93/$C93*100 -> 5.112372694 | I93: =SUM(I61:I92) -> 128868.375 | J93: =I93/$C93*100 -> 5.112372694 | K93: =SUM(K61:K92) -> 475079.12 | L93: =K93/$C93*100 -> 18.84699423 | M93: =SUM(M62:M92) -> 236023.37 | N93: =M93/$C93*100 -> 9.363347927 | O93: =SUM(O62:O92) -> 464237.84 | P93: =O93/$C93*100 -> 18.41690684 | Q93: =SUM(Q62:Q92) -> 826076.735 | R93: =Q93/$C93*100 -> 32.77151701 | S93: =SUM(S62:S92) -> 261561.765 | T93: =S93/$C93*100 -> 10.37648861 | U93: =SUM(U61:U92) -> 0 | V93: =U93/$C93*100 -> 0 | W93: =SUM(W61:W92) -> 0 | X93: =W93/$C93*100 -> 0 | Y93: =SUM(Y61:Y92) -> 0 | Z93: =Y93/$C93*100 -> 0 | AA93: =SUM(AA61:AA92) -> 0 | AB93: =AA93/$C93*100 -> 0 | AC93: =SUM(AC61:AC92) -> 2520715.58 | AD93: =AC93/$C93*100 -> 100
B94: TOTAL ACUMULADO | E94: =E93 -> 0 | F94: =E94/$C93*100 -> 0 | G94: =G93+E94 -> 128868.375 | H94: =G94/$C93*100 -> 5.112372694 | I94: =I93+G94 -> 257736.75 | J94: =I94/$C93*100 -> 10.22474539 | K94: =K93+I94 -> 732815.87 | L94: =K94/$C93*100 -> 29.07173962 | M94: =M93+K94 -> 968839.24 | N94: =M94/$C93*100 -> 38.43508755 | O94: =O93+M94 -> 1433077.08 | P94: =O94/$C93*100 -> 56.85199438 | Q94: =Q93+O94 -> 2259153.815 | R94: =Q94/$C93*100 -> 89.62351139 | S94: =S93+Q94 -> 2520715.58 | T94: =S94/$C93*100 -> 100 | U94: =U93+S94 -> 2520715.58 | V94: =U94/$C93*100 -> 100 | W94: =W93+U94 -> 2520715.58 | X94: =W94/$C93*100 -> 100 | Y94: =Y93+W94 -> 2520715.58 | Z94: =Y94/$C93*100 -> 100 | AA94: =AA93+Y94 -> 2520715.58 | AB94: =AA94/$C93*100 -> 100
C97: CRONOGRAMA FÍSICO FINANCEIRO | AC97: UNAEN-FF-003
AC99: Revisão: 00 | AD99: Data: 11/05/2017
A100: SESI - SERVIÇO SOCIAL DA INDUSTRIA - DR/MT
A101: =A53 -> UNIDADE OPERACIONAL: SESI ESCOLA CUIABA | D101: =D53 -> ENDEREÇO: AV. OÁTOMO CANAVARROS, 1079, BAIRRO BELA VISTA CIDADE: CUIABÁ-MT
A102: ='[1]PLAN RESUMO'!$A$9:$E$9 -> CONSTRUTORA: | D102: =CONCATENATE(" VALOR: ","R$ ",TEXT(SUM(C141),"#.##0,00")) -> VALOR: R$ 5.363.242,02 | H102: =H54 -> PRAZO: 12 MESES
A103: ='[1]PLAN RESUMO'!$A$10:$E$10 -> RESPONSÁVEL TÉCNICO:
A105: BLOCO B
A107: ITEM | B107: DESCRIÇÃO | C107: ETAPA TOTAL | E107: 1 MÊS | G107: 2 MESES | I107: 3 MESES | K107: 4 MESES | M107: 5 MESES | O107: 6 MESES | Q107: 7 MESES | S107: 8 MESES | U107: 9 MESES | W107: 10 MESES | Y107: 11 MESES | AA107: 12 MESES | AC107: TOTAL
C108: (R$) | D108: (%) | E108: (R$) | F108: (%) | G108: (R$) | H108: (%) | I108: (R$) | J108: (%) | K108: (R$) | L108: (%) | M108: (R$) | N108: (%) | O108: (R$) | P108: (%) | Q108: (R$) | R108: (%) | S108: (R$) | T108: (%) | U108: (R$) | V108: (%) | W108: (R$) | X108: (%) | Y108: (R$) | Z108: (%) | AA108: (R$) | AB108: (%) | AC108: (R$) | AD108: (%)
A109: 3.1 | B109: DEMOLIÇÕES E RETIRADAS | C109: 89219.92 | D109: =C109/$C$141*100 -> 1.663544544 | E109: =F109*$C109/100 -> 0 | G109: =H109*$C109/100 -> 44609.96 | H109: 50 | I109: =J109*$C109/100 -> 44609.96 | J109: 50 | K109: =L109*$C109/100 -> 0 | M109: =N109*$C109/100 -> 0 | O109: =P109*$C109/100 -> 0 | Q109: =R109*$C109/100 -> 0 | S109: =T109*$C109/100 -> 0 | U109: =V109*$C109/100 -> 0 | W109: =X109*$C109/100 -> 0 | Y109: =Z109*$C109/100 -> 0 | AA109: =AB109*$C109/100 -> 0 | AC109: =AD109*$C109/100 -> 89219.92 | AD109: =N109+L109+J109+H109+F109+P109+R109+T109+V109+X109+Z109+AB109 -> 100
A110: 3.2 | B110: CANTEIRO DE OBRAS | C110: 0 | D110: =C110/$C$141*100 -> 0 | E110: =F110*$C110/100 -> 0 | G110: =H110*$C110/100 -> 0 | I110: =J110*$C110/100 -> 0 | K110: =L110*$C110/100 -> 0 | M110: =N110*$C110/100 -> 0 | O110: =P110*$C110/100 -> 0 | Q110: =R110*$C110/100 -> 0 | S110: =T110*$C110/100 -> 0 | U110: 0 | W110: 0 | Y110: 0 | AA110: 0 | AC110: =AD110*$C110/100 -> 0 | AD110: =N110+L110+J110+H110+F110+P110+R110+T110+V110+X110+Z110+AB110 -> 0
A111: 3.3 | B111: ADMINISTRAÇÃO | C111: 0 | D111: 0 | E111: 0 | G111: =H111*$C111/100 -> 0 | I111: =J111*$C111/100 -> 0 | K111: =L111*$C111/100 -> 0 | M111: =N111*$C111/100 -> 0 | O111: =P111*$C111/100 -> 0 | Q111: =R111*$C111/100 -> 0 | S111: =T111*$C111/100 -> 0 | U111: 0 | W111: 0 | Y111: 0 | AA111: 0 | AC111: =AD111*$C111/100 -> 0 | AD111: 0
A112: 3.4 | B112: TERRAPLENAGEM | C112: 0 | D112: 0 | E112: 0 | G112: 0 | I112: 0 | K112: 0 | M112: 0 | O112: 0 | Q112: 0 | S112: 0 | U112: 0 | W112: 0 | Y112: 0 | AA112: 0 | AC112: 0 | AD112: 0
A113: 3.5 | B113: FUNDAÇÃO | C113: 195519.39 | D113: 3.645544789 | E113: 0 | G113: 0 | I113: 0 | J113: 0 | K113: 195519.39 | L113: 100 | M113: 0 | O113: 0 | Q113: 0 | S113: 0 | U113: 0 | W113: 0 | Y113: 0 | AA113: 0 | AC113: 195519.39 | AD113: 100
A114: 3.6 | B114: IMPERMEABILIZAÇÃO | C114: 16084.54 | D114: 0.2999033036 | E114: 0 | G114: 0 | I114: 0 | K114: 16084.54 | L114: 100 | M114: 0 | O114: 0 | Q114: 0 | S114: 0 | U114: 0 | W114: 0 | Y114: 0 | AA114: 0 | AC114: 16084.54 | AD114: 100
A115: 3.7 | B115: ESTRUTURA DE CONCRETO ARMADO | C115: 550010.91 | D115: 10.25519467 | E115: 0 | G115: 0 | I115: 0 | J115: 0 | K115: 0 | M115: 550010.91 | N115: 100 | O115: 0 | Q115: 0 | S115: 0 | U115: 0 | W115: 0 | Y115: 0 | AA115: 0 | AC115: 550010.91 | AD115: 100
A116: 3.8 | B116: ALVENARIA E PAINÉIS | C116: 196101.99 | D116: 3.656407622 | E116: 0 | G116: 0 | I116: 0 | K116: 0 | M116: 0 | O116: 98050.995 | P116: 50 | Q116: 98050.995 | R116: 50 | S116: 0 | U116: 0 | W116: 0 | Y116: 0 | AA116: 0 | AC116: 196101.99 | AD116: 100
A117: 3.9 | B117: ESTRUTURA METÁLICA | C117: 1215010.75 | D117: 22.65440839 | E117: 0 | G117: 0 | I117: 243002.15 | J117: 20 | K117: 243002.15 | L117: 20 | M117: 243002.15 | N117: 20 | O117: 486004.3 | P117: 40 | Q117: 0 | S117: 0 | U117: 0 | W117: 0 | Y117: 0 | AA117: 0 | AC117: 1215010.75 | AD117: 100
A118: 3.10 | B118: COBERTURA | C118: 894313.67 | D118: 16.67487066 | E118: 0 | G118: 0 | I118: 0 | K118: 0 | M118: 0 | O118: 0 | Q118: 894313.67 | R118: 100 | S118: 0 | U118: 0 | W118: 0 | Y118: 0 | AA118: 0 | AC118: 894313.67 | AD118: 100
A119: 3.11 | B119: ESQUADRIAS | C119: 288815.75 | D119: 5.385096345 | E119: 0 | G119: 0 | I119: 0 | K119: 0 | M119: 0 | O119: 144407.875 | P119: 50 | Q119: 144407.875 | R119: 50 | S119: 0 | U119: 0 | W119: 0 | Y119: 0 | AA119: 0 | AC119: 288815.75 | AD119: 100
A120: 3.12 | B120: PISOS | C120: 554321.48 | D120: 10.33556714 | E120: 0 | G120: 0 | I120: 0 | K120: 0 | M120: 0 | O120: 0 | Q120: 277160.74 | R120: 50 | S120: 277160.74 | T120: 50 | U120: 0 | W120: 0 | Y120: 0 | AA120: 0 | AC120: 554321.48 | AD120: 100
A121: 3.13 | B121: REVESTIMENTO | C121: 362894.94 | D121: 6.766335337 | E121: 0 | G121: 0 | I121: 0 | K121: 0 | M121: 0 | O121: 0 | Q121: 0 | S121: 362894.94 | T121: 100 | U121: 0 | W121: 0 | Y121: 0 | AA121: 0 | AC121: 362894.94 | AD121: 100
A122: 3.14 | B122: GRANITO | C122: 99071.85 | D122: 1.8472381 | E122: 0 | G122: 0 | I122: 0 | K122: 0 | M122: 0 | O122: 0 | Q122: 0 | S122: 99071.85 | T122: 100 | U122: 0 | W122: 0 | Y122: 0 | AA122: 0 | AC122: 99071.85 | AD122: 100
A123: 3.15 | B123: FORROS | C123: 292732.1 | D123: 5.458118409 | E123: 0 | G123: 0 | I123: 0 | K123: 0 | M123: 0 | O123: 0 | Q123: 0 | S123: 0 | U123: 292732.1 | V123: 100 | W123: 0 | Y123: 0 | AA123: 0 | AC123: 292732.1 | AD123: 100
A124: 3.16 | B124: PINTURA | C124: 152544.71 | D124: 2.84426303 | E124: 0 | G124: 0 | I124: 0 | K124: 0 | M124: 0 | O124: 0 | Q124: 0 | S124: 0 | U124: 152544.71 | V124: 100 | W124: 0 | Y124: 0 | AA124: 0 | AC124: 152544.71 | AD124: 100
A125: 3.17 | B125: CALÇAMENTO, PÁTIO E PASSARELAS | C125: 0 | D125: 0 | E125: 0 | G125: 0 | I125: 0 | K125: 0 | M125: 0 | O125: 0 | Q125: 0 | S125: 0 | U125: 0 | W125: 0 | Y125: 0 | AA125: 0 | AC125: 0 | AD125: 0
A126: 3.18 | B126: SERVIÇOS COMPLEMENTARES | C126: 862.44 | D126: 0.0160805721 | E126: 0 | G126: 0 | I126: 0 | K126: 0 | M126: 862.44 | N126: 100 | O126: 0 | Q126: 0 | S126: 0 | U126: 0 | W126: 0 | Y126: 0 | AA126: 0 | AC126: 862.44 | AD126: 100
A127: 3.19 | B127: INSTALAÇÕES SPDA | C127: 64137.11 | D127: 1.195864549 | E127: 0 | G127: 0 | I127: 0 | K127: 0 | M127: 0 | O127: 0 | Q127: 0 | S127: 64137.11 | T127: 100 | U127: 0 | W127: 0 | Y127: 0 | AA127: 0 | AC127: 64137.11 | AD127: 100
A128: 3.20 | B128: INSTALAÇÕES DE COMBATE A INCÊNDIO | C128: 0 | D128: 0 | E128: 0 | G128: 0 | I128: 0 | K128: 0 | M128: 0 | O128: 0 | Q128: 0 | S128: 0 | U128: 0 | W128: 0 | Y128: 0 | AA128: 0 | AC128: 0 | AD128: 0
A129: 3.21 | B129: INSTALAÇÕES ELÉTRICAS | C129: 190942.91 | D129: 3.560214312 | E129: 0 | G129: 0 | I129: 0 | K129: 0 | M129: 38188.582 | N129: 20 | O129: 38188.582 | P129: 20 | Q129: 38188.582 | R129: 20 | S129: 38188.582 | T129: 20 | U129: 38188.582 | V129: 20 | W129: 0 | Y129: 0 | AA129: 0 | AC129: 190942.91 | AD129: 100
A130: 3.22 | B130: INSTALAÇÕES DE LÓGICA E TELEFONICA | C130: 0 | D130: 0 | E130: 0 | G130: 0 | I130: 0 | K130: 0 | M130: 0 | O130: 0 | Q130: 0 | S130: 0 | U130: 0 | W130: 0 | Y130: 0 | AA130: 0 | AC130: 0 | AD130: 0
A131: 3.23 | B131: CLIMATIZAÇÃO | C131: 0 | D131: 0 | E131: 0 | G131: 0 | I131: 0 | K131: 0 | M131: 0 | O131: 0 | Q131: 0 | S131: 0 | U131: 0 | W131: 0 | Y131: 0 | AA131: 0 | AC131: 0 | AD131: 0
A132: 3.24 | B132: INFRAESTRUTURA PARA INSTALAÇÃO DE ÁUDIO E VÍDEO | C132: 130425.37 | D132: 2.431838234 | E132: 0 | G132: 0 | I132: 0 | K132: 0 | M132: 0 | O132: 0 | Q132: 0 | S132: 65212.685 | T132: 50 | U132: 65212.685 | V132: 50 | W132: 0 | Y132: 0 | AA132: 0 | AC132: 130425.37 | AD132: 100
A133: 3.25 | B133: INSTALAÇÕES HIDROSANITÁRIAS | C133: 0 | D133: 0 | E133: 0 | G133: 0 | I133: 0 | K133: 0 | M133: 0 | O133: 0 | Q133: 0 | S133: 0 | U133: 0 | W133: 0 | Y133: 0 | AA133: 0 | AC133: 0 | AD133: 0
A134: 3.26 | B134: DRENAGEM | C134: 0 | D134: 0 | E134: 0 | G134: 0 | I134: 0 | K134: 0 | L134: 100 | M134: 0 | O134: 0 | Q134: 0 | S134: 0 | U134: 0 | W134: 0 | Y134: 0 | AA134: 0 | AC134: 0 | AD134: 100
A135: 3.27 | B135: GLP (BLOCOB) | C135: 4663.21 | D135: 0.08694759592 | E135: 0 | G135: 0 | I135: 0 | K135: 1398.963 | L135: 30 | M135: 1398.963 | N135: 30 | O135: 1865.284 | P135: 40 | Q135: 0 | S135: 0 | U135: 0 | W135: 0 | Y135: 0 | AA135: 0 | AC135: 4663.21 | AD135: 100
A136: 3.28 | B136: LOUÇAS E METAIS | C136: 65568.98 | D136: 1.222562393 | E136: 0 | G136: 0 | I136: 0 | K136: 0 | M136: 0 | O136: 0 | Q136: 0 | S136: 0 | U136: 65568.98 | V136: 100 | W136: 0 | Y136: 0 | AA136: 0 | AC136: 65568.98 | AD136: 100
A137: 3.29 | B137: ACESSIBILIDADE | C137: 0 | D137: 0 | E137: 0 | G137: 0 | I137: 0 | K137: 0 | M137: 0 | O137: 0 | Q137: 0 | S137: 0 | U137: 0 | W137: 0 | Y137: 0 | AA137: 0 | AC137: 0 | AD137: 0
A138: 3.30 | B138: SEGURANÇA PATRIMONIAL | C138: 0 | D138: 0 | E138: 0 | G138: 0 | I138: 0 | K138: 0 | M138: 0 | O138: 0 | Q138: 0 | S138: 0 | U138: 0 | W138: 0 | Y138: 0 | AA138: 0 | AC138: 0 | AD138: 0
A139: 3.31 | B139: LIMPEZA CONTÍNUA DA OBRA | C139: 0 | D139: 0 | E139: 0 | G139: 0 | I139: 0 | K139: =L139*C139/100 -> 0 | M139: 0 | O139: 0 | Q139: 0 | S139: 0 | U139: 0 | W139: 0 | Y139: 0 | AA139: 0 | AC139: =AD139*$C139/100 -> 0 | AD139: 0
A140: 3.32 | B140: LIMPEZA FINAL DA OBRA | C140: 0 | D140: 0 | E140: 0 | G140: 0 | I140: 0 | K140: =L140*C140/100 -> 0 | M140: 0 | O140: 0 | Q140: 0 | S140: 0 | U140: 0 | W140: 0 | Y140: 0 | AA140: 0 | AC140: =AD140*$C140/100 -> 0
B141: TOTAL | C141: =SUM(C109:C140) -> 5363242.02 | D141: =SUM(D109:D139) -> 100 | E141: =SUM(E109:E140) -> 0 | F141: =E141/$C141*100 -> 0 | G141: =SUM(G109:G140) -> 44609.96 | H141: =G141/$C141*100 -> 0.831772272 | I141: =SUM(I109:I140) -> 287612.11 | J141: =I141/$C141*100 -> 5.362653949 | K141: =SUM(K109:K140) -> 456005.043 | L141: =K141/$C141*100 -> 8.502414049 | M141: =SUM(M110:M140) -> 833463.045 | N141: =M141/$C141*100 -> 15.54028406 | O141: =SUM(O110:O140) -> 768517.036 | P141: =O141/$C141*100 -> 14.32933724 | Q141: =SUM(Q110:Q140) -> 1452121.862 | R141: =Q141/$C141*100 -> 27.07544908 | S141: =SUM(S110:S140) -> 906665.907 | T141: =S141/$C141*100 -> 16.90518354 | U141: =SUM(U109:U140) -> 614247.057 | V141: =U141/$C141*100 -> 11.45290581 | W141: =SUM(W109:W140) -> 0 | X141: =W141/$C141*100 -> 0 | Y141: =SUM(Y109:Y140) -> 0 | Z141: =Y141/$C141*100 -> 0 | AA141: =SUM(AA109:AA140) -> 0 | AB141: =AA141/$C141*100 -> 0 | AC141: =SUM(AC109:AC140) -> 5363242.02 | AD141: =AC141/$C141*100 -> 100
B142: TOTAL ACUMULADO | E142: =E141 -> 0 | F142: =E142/$C141*100 -> 0 | G142: =G141+E142 -> 44609.96 | H142: =G142/$C141*100 -> 0.831772272 | I142: =I141+G142 -> 332222.07 | J142: =I142/$C141*100 -> 6.194426221 | K142: =K141+I142 -> 788227.113 | L142: =K142/$C141*100 -> 14.69684027 | M142: =M141+K142 -> 1621690.158 | N142: =M142/$C141*100 -> 30.23712434 | O142: =O141+M142 -> 2390207.194 | P142: =O142/$C141*100 -> 44.56646157 | Q142: =Q141+O142 -> 3842329.056 | R142: =Q142/$C141*100 -> 71.64191065 | S142: =S141+Q142 -> 4748994.963 | T142: =S142/$C141*100 -> 88.54709419 | U142: =U141+S142 -> 5363242.02 | V142: =U142/$C141*100 -> 100 | W142: =W141+U142 -> 5363242.02 | X142: =W142/$C141*100 -> 100 | Y142: =Y141+W142 -> 5363242.02 | Z142: =Y142/$C141*100 -> 100 | AA142: =AA141+Y142 -> 5363242.02 | AB142: =AA142/$C141*100 -> 100
C145: CRONOGRAMA FÍSICO FINANCEIRO | AC145: UNAEN-FF-003
AC147: Revisão: 00 | AD147: Data: 11/05/2017
A148: SESI - SERVIÇO SOCIAL DA INDUSTRIA - DR/MT
A149: =A101 -> UNIDADE OPERACIONAL: SESI ESCOLA CUIABA | D149: =D101 -> ENDEREÇO: AV. OÁTOMO CANAVARROS, 1079, BAIRRO BELA VISTA CIDADE: CUIABÁ-MT
A150: ='[1]PLAN RESUMO'!$A$9:$E$9 -> CONSTRUTORA: | D150: =CONCATENATE(" VALOR: ","R$ ",TEXT(SUM(C189),"#.##0,00")) -> VALOR: R$ 2.417.693,88 | H150: =H102 -> PRAZO: 12 MESES
A151: ='[1]PLAN RESUMO'!$A$10:$E$10 -> RESPONSÁVEL TÉCNICO:
A153: BLOCO C
A155: ITEM | B155: DESCRIÇÃO | C155: ETAPA TOTAL | E155: 1 MÊS | G155: 2 MESES | I155: 3 MESES | K155: 4 MESES | M155: 5 MESES | O155: 6 MESES | Q155: 7 MESES | S155: 8 MESES | U155: 9 MESES | W155: 10 MESES | Y155: 11 MESES | AA155: 12 MESES | AC155: TOTAL
C156: (R$) | D156: (%) | E156: (R$) | F156: (%) | G156: (R$) | H156: (%) | I156: (R$) | J156: (%) | K156: (R$) | L156: (%) | M156: (R$) | N156: (%) | O156: (R$) | P156: (%) | Q156: (R$) | R156: (%) | S156: (R$) | T156: (%) | U156: (R$) | V156: (%) | W156: (R$) | X156: (%) | Y156: (R$) | Z156: (%) | AA156: (R$) | AB156: (%) | AC156: (R$) | AD156: (%)
A157: 4.1 | B157: DEMOLIÇÕES E RETIRADAS | C157: 91414.74 | D157: =C157/$C$189*100 -> 3.781071738 | E157: =F157*$C157/100 -> 0 | F157: 0 | G157: =H157*$C157/100 -> 0 | I157: =J157*$C157/100 -> 0 | K157: =L157*$C157/100 -> 0 | M157: =N157*$C157/100 -> 0 | O157: =P157*$C157/100 -> 0 | Q157: =R157*$C157/100 -> 0 | S157: =T157*$C157/100 -> 0 | U157: =V157*$C157/100 -> 91414.74 | V157: 100 | W157: =X157*$C157/100 -> 0 | Y157: =Z157*$C157/100 -> 0 | AA157: =AB157*$C157/100 -> 0 | AC157: =AD157*$C157/100 -> 91414.74 | AD157: =N157+L157+J157+H157+F157+P157+R157+T157+V157+X157+Z157+AB157 -> 100
A158: 4.2 | B158: CANTEIRO DE OBRAS | C158: 0 | D158: =C158/$C$189*100 -> 0 | E158: =F158*$C158/100 -> 0 | F158: 0 | G158: =H158*$C158/100 -> 0 | I158: =J158*$C158/100 -> 0 | K158: =L158*$C158/100 -> 0 | M158: =N158*$C158/100 -> 0 | O158: =P158*$C158/100 -> 0 | Q158: =R158*$C158/100 -> 0 | S158: =T158*$C158/100 -> 0 | U158: 0 | W158: 0 | Y158: 0 | AA158: 0 | AC158: =AD158*$C158/100 -> 0 | AD158: =N158+L158+J158+H158+F158+P158+R158+T158+V158+X158+Z158+AB158 -> 0
A159: 4.3 | B159: ADMINISTRAÇÃO | C159: 0 | D159: 0 | E159: 0 | F159: 0 | G159: =H159*$C159/100 -> 0 | I159: =J159*$C159/100 -> 0 | K159: =L159*$C159/100 -> 0 | M159: =N159*$C159/100 -> 0 | O159: =P159*$C159/100 -> 0 | Q159: =R159*$C159/100 -> 0 | S159: =T159*$C159/100 -> 0 | U159: 0 | W159: 0 | Y159: 0 | AA159: 0 | AC159: =AD159*$C159/100 -> 0 | AD159: 0
A160: 4.4 | B160: TERRAPLENAGEM | C160: 1842.6 | D160: 0.07621312256 | E160: 0 | F160: 0 | G160: 0 | I160: 0 | K160: 0 | M160: 0 | O160: 0 | Q160: 0 | S160: 0 | U160: 0 | W160: 1842.6 | X160: 100 | Y160: 0 | AA160: 0 | AC160: 1842.6 | AD160: 100
A161: 4.5 | B161: FUNDAÇÃO | C161: 13600.04 | D161: 0.5625211741 | E161: 0 | F161: 0 | G161: 0 | I161: 0 | K161: 0 | M161: 0 | O161: 0 | Q161: 0 | S161: 0 | U161: 0 | W161: 13600.04 | X161: 100 | Y161: 0 | AA161: 0 | AC161: 13600.04 | AD161: 100
A162: 4.6 | B162: IMPERMEABILIZAÇÃO | C162: 0 | D162: 0 | E162: 0 | F162: 0 | G162: 0 | I162: 0 | K162: 0 | M162: 0 | O162: 0 | Q162: 0 | S162: 0 | U162: 0 | W162: 0 | Y162: 0 | AA162: 0 | AC162: 0 | AD162: 0
A163: 4.7 | B163: ESTRUTURA DE CONCRETO ARMADO | C163: 0 | D163: 0 | E163: 0 | F163: 0 | G163: 0 | I163: 0 | K163: 0 | M163: 0 | O163: 0 | Q163: 0 | S163: 0 | U163: 0 | W163: 0 | Y163: 0 | AA163: 0 | AC163: 0 | AD163: 0
A164: 4.8 | B164: ALVENARIA E PAINÉIS | C164: 121965.22 | D164: 5.044692424 | E164: 0 | F164: 0 | G164: 0 | I164: 0 | K164: 0 | M164: 0 | O164: 0 | Q164: 0 | S164: 0 | U164: 60982.61 | V164: 50 | W164: 60982.61 | X164: 50 | Y164: 0 | AA164: 0 | AC164: 121965.22 | AD164: 100
A165: 4.9 | B165: ESTRUTURA METÁLICA | C165: 332997.21 | D165: 13.77334049 | E165: 0 | F165: 0 | G165: 0 | I165: 0 | K165: 0 | M165: 0 | O165: 0 | Q165: 66599.442 | R165: 20 | S165: 66599.442 | T165: 20 | U165: 66599.442 | V165: 20 | W165: 133198.884 | X165: 40 | Y165: 0 | AA165: 0 | AC165: 332997.21 | AD165: 100
A166: 4.10 | B166: COBERTURA | C166: 486888.88 | D166: 20.1385661 | E166: 0 | F166: 0 | G166: 0 | I166: 0 | K166: 0 | M166: 0 | O166: 0 | Q166: 0 | S166: 0 | U166: 243444.44 | V166: 50 | W166: 243444.44 | X166: 50 | Y166: 0 | AA166: 0 | AC166: 486888.88 | AD166: 100
A167: 4.11 | B167: ESQUADRIAS | C167: 186933.49 | D167: 7.731892426 | E167: 0 | F167: 0 | G167: 0 | I167: 0 | K167: 0 | M167: 0 | O167: 0 | Q167: 0 | S167: 0 | U167: 0 | W167: 93466.745 | X167: 50 | Y167: 93466.745 | Z167: 50 | AA167: 0 | AC167: 186933.49 | AD167: 100
A168: 4.12 | B168: PISOS | C168: 325370.06 | D168: 13.45786837 | E168: 0 | F168: 0 | G168: 0 | I168: 0 | K168: 0 | M168: 0 | O168: 0 | Q168: 0 | S168: 0 | U168: 162685.03 | V168: 50 | W168: 162685.03 | X168: 50 | Y168: 0 | AA168: 0 | AC168: 325370.06 | AD168: 100
A169: 4.13 | B169: REVESTIMENTO | C169: 179274.18 | D169: 7.415090119 | E169: 0 | F169: 0 | G169: 0 | I169: 0 | K169: 0 | M169: 0 | O169: 0 | Q169: 0 | S169: 0 | U169: 0 | W169: 53782.254 | X169: 30 | Y169: 107564.508 | Z169: 60 | AA169: 17927.418 | AB169: 10 | AC169: 179274.18 | AD169: 100
A170: 4.14 | B170: GRANITO | C170: 42819.18 | D170: 1.771075336 | E170: 0 | F170: 0 | G170: 0 | I170: 0 | K170: 0 | M170: 0 | O170: 0 | Q170: 0 | S170: 0 | U170: 0 | W170: 0 | Y170: 21409.59 | Z170: 50 | AA170: 21409.59 | AB170: 50 | AC170: 42819.18 | AD170: 100
A171: 4.15 | B171: FORROS | C171: 190854.94 | D171: 7.89409038 | E171: 0 | F171: 0 | G171: 0 | I171: 0 | K171: 0 | M171: 0 | O171: 0 | Q171: 0 | S171: 0 | U171: 0 | W171: 0 | Y171: 95427.47 | Z171: 50 | AA171: 95427.47 | AB171: 50 | AC171: 190854.94 | AD171: =N171+L171+J171+H171+F171+P171+R171+T171+V171+X171+Z171+AB171 -> 100
A172: 4.16 | B172: PINTURA | C172: 76689.83 | D172: 3.172023995 | E172: 0 | F172: 0 | G172: 0 | I172: 0 | K172: 0 | M172: 0 | O172: 0 | Q172: 0 | S172: 0 | U172: 0 | W172: 0 | Y172: 23006.949 | Z172: 30 | AA172: 53682.881 | AB172: 70 | AC172: 76689.83 | AD172: 100
A173: 4.17 | B173: CALÇAMENTO, PÁTIO E PASSARELAS | C173: 0 | D173: 0 | E173: 0 | F173: 0 | G173: 0 | I173: 0 | K173: 0 | M173: 0 | O173: 0 | Q173: 0 | S173: 0 | U173: 0 | W173: 0 | Y173: 0 | AA173: 0 | AC173: 0 | AD173: 0
A174: 4.18 | B174: SERVIÇOS COMPLEMENTARES | C174: 24220.93 | D174: 1.001819552 | E174: 0 | F174: 0 | G174: 0 | I174: 0 | K174: 0 | M174: 0 | O174: 0 | Q174: 0 | S174: 0 | U174: 0 | W174: 0 | Y174: 0 | AA174: 24220.93 | AB174: 100 | AC174: 24220.93 | AD174: 100
A175: 4.19 | B175: INSTALAÇÕES SPDA | C175: 52223.1 | D175: 2.16003773 | E175: 0 | F175: 0 | G175: 0 | I175: 0 | K175: 0 | M175: 0 | O175: 0 | Q175: 0 | S175: 0 | U175: 26111.55 | V175: 50 | W175: 26111.55 | X175: 50 | Y175: 0 | AA175: 0 | AC175: 52223.1 | AD175: 100
A176: 4.20 | B176: INSTALAÇÕES DE COMBATE A INCÊNDIO | C176: 0 | D176: 0 | E176: 0 | F176: 0 | G176: 0 | I176: 0 | K176: 0 | M176: 0 | O176: 0 | Q176: 0 | S176: 0 | U176: 0 | W176: 0 | Y176: 0 | AA176: 0 | AC176: 0 | AD176: 0
A177: 4.21 | B177: INSTALAÇÕES ELÉTRICAS | C177: 144500.67 | D177: 5.976797608 | E177: 0 | F177: 0 | G177: 0 | I177: 0 | K177: 0 | M177: 0 | O177: 0 | Q177: 0 | S177: 0 | U177: 43350.201 | V177: 30 | W177: 43350.201 | X177: 30 | Y177: 28900.134 | Z177: 20 | AA177: 28900.134 | AB177: 20 | AC177: 144500.67 | AD177: 100
A178: 4.22 | B178: INSTALAÇÕES DE LÓGICA E TELEFONICA | C178: 0 | D178: 0 | E178: 0 | F178: 0 | G178: 0 | I178: 0 | K178: 0 | M178: 0 | O178: 0 | Q178: 0 | S178: 0 | U178: 0 | W178: 0 | Y178: 0 | AA178: 0 | AC178: 0 | AD178: 0
A179: 4.23 | B179: CLIMATIZAÇÃO | C179: 0 | D179: 0 | E179: 0 | F179: 0 | G179: 0 | I179: 0 | K179: 0 | M179: 0 | O179: 0 | Q179: 0 | S179: 0 | U179: 0 | W179: 0 | Y179: 0 | AA179: 0 | AC179: 0 | AD179: 0
A180: 4.24 | B180: INFRAESTRUTURA PARA INSTALAÇÃO DE ÁUDIO E VÍDEO | C180: 120357.53 | D180: 4.978195585 | E180: 0 | F180: 0 | G180: 0 | I180: 0 | K180: 0 | M180: 0 | O180: 0 | Q180: 0 | S180: 0 | U180: 0 | W180: 0 | Y180: 60178.765 | Z180: 50 | AA180: 60178.765 | AB180: 50 | AC180: 120357.53 | AD180: 100
A181: 4.25 | B181: INSTALAÇÕES HIDROSANITÁRIAS | C181: 0 | D181: 0 | E181: 0 | F181: 0 | G181: 0 | I181: 0 | K181: 0 | M181: 0 | O181: 0 | Q181: 0 | S181: 0 | U181: 0 | W181: 0 | Y181: 0 | AA181: 0 | AC181: 0 | AD181: 0
A182: 4.26 | B182: DRENAGEM | C182: 0 | D182: 0 | E182: 0 | F182: 0 | G182: 0 | I182: 0 | K182: 0 | M182: 0 | O182: 0 | Q182: 0 | S182: 0 | U182: 0 | W182: 0 | Y182: 0 | AA182: 0 | AC182: 0 | AD182: 0
A183: 4.27 | B183: GLP (BLOCOB) | C183: 0 | D183: 0 | E183: 0 | F183: 0 | G183: 0 | I183: 0 | K183: 0 | M183: 0 | O183: 0 | Q183: 0 | S183: 0 | U183: 0 | W183: 0 | Y183: 0 | AA183: 0 | AC183: 0 | AD183: 0
A184: 4.28 | B184: LOUÇAS E METAIS | C184: 25741.28 | D184: 1.064703857 | E184: 0 | F184: 0 | G184: 0 | I184: 0 | K184: 0 | M184: 0 | O184: 0 | Q184: 0 | S184: 0 | U184: 0 | W184: 0 | Y184: 12870.64 | Z184: 50 | AA184: 12870.64 | AB184: 50 | AC184: 25741.28 | AD184: 100
A185: 4.29 | B185: ACESSIBILIDADE | C185: 0 | D185: 0 | E185: 0 | F185: 0 | G185: 0 | I185: 0 | K185: 0 | M185: 0 | O185: 0 | Q185: 0 | S185: 0 | U185: 0 | W185: 0 | Y185: 0 | AA185: 0 | AC185: 0 | AD185: 0
A186: 4.30 | B186: SEGURANÇA PATRIMONIAL | C186: 0 | D186: 0 | E186: 0 | F186: 0 | G186: 0 | I186: 0 | K186: 0 | M186: 0 | O186: 0 | Q186: 0 | S186: 0 | U186: 0 | W186: 0 | Y186: 0 | AA186: 0 | AC186: 0 | AD186: 0
A187: 4.31 | B187: LIMPEZA CONTÍNUA DA OBRA | C187: 0 | D187: 0 | E187: 0 | F187: 0 | G187: 0 | I187: 0 | K187: =L187*C187/100 -> 0 | M187: 0 | O187: 0 | Q187: 0 | S187: 0 | U187: 0 | W187: 0 | Y187: 0 | AA187: 0 | AC187: =AD187*$C187/100 -> 0 | AD187: 0
A188: 4.32 | B188: LIMPEZA FINAL DA OBRA | C188: 0 | D188: 0 | E188: 0 | F188: 0 | G188: 0 | I188: 0 | K188: =L188*C188/100 -> 0 | M188: 0 | O188: 0 | Q188: 0 | S188: 0 | U188: 0 | W188: 0 | Y188: 0 | AA188: 0 | AC188: =AD188*$C188/100 -> 0 | AD188: 0
B189: TOTAL | C189: =SUM(C157:C188) -> 2417693.88 | D189: =SUM(D157:D188) -> 100 | E189: =SUM(E157:E188) -> 0 | F189: =E189/$C189*100 -> 0 | G189: =SUM(G157:G188) -> 0 | H189: =G189/$C189*100 -> 0 | I189: =SUM(I157:I187) -> 0 | J189: =I189/$C189*100 -> 0 | K189: =SUM(K157:K187) -> 0 | L189: =K189/$C189*100 -> 0 | M189: =SUM(M158:M187) -> 0 | N189: =M189/$C189*100 -> 0 | O189: =SUM(O158:O187) -> 0 | P189: =O189/$C189*100 -> 0 | Q189: =SUM(Q158:Q187) -> 66599.442 | R189: =Q189/$C189*100 -> 2.754668097 | S189: =SUM(S158:S187) -> 66599.442 | T189: =S189/$C189*100 -> 2.754668097 | U189: =SUM(U157:U187) -> 694588.013 | V189: =U189/$C189*100 -> 28.72936143 | W189: =SUM(W157:W187) -> 832464.354 | X189: =W189/$C189*100 -> 34.43216533 | Y189: =SUM(Y157:Y187) -> 442824.801 | Z189: =Y189/$C189*100 -> 18.31599958 | AA189: =SUM(AA157:AA187) -> 314617.828 | AB189: =AA189/$C189*100 -> 13.01313746 | AC189: =SUM(AC157:AC187) -> 2417693.88 | AD189: =AC189/$C189*100 -> 100
B190: TOTAL ACUMULADO | E190: =E189 -> 0 | F190: =E190/$C189*100 -> 0 | G190: =G189+E190 -> 0 | H190: =G190/$C189*100 -> 0 | I190: =I189+G190 -> 0 | J190: =I190/$C189*100 -> 0 | K190: =K189+I190 -> 0 | L190: =K190/$C189*100 -> 0 | M190: =M189+K190 -> 0 | N190: =M190/$C189*100 -> 0 | O190: =O189+M190 -> 0 | P190: =O190/$C189*100 -> 0 | Q190: =Q189+O190 -> 66599.442 | R190: =Q190/$C189*100 -> 2.754668097 | S190: =S189+Q190 -> 133198.884 | T190: =S190/$C189*100 -> 5.509336194 | U190: =U189+S190 -> 827786.897 | V190: =U190/$C189*100 -> 34.23869762 | W190: =W189+U190 -> 1660251.251 | X190: =W190/$C189*100 -> 68.67086295 | Y190: =Y189+W190 -> 2103076.052 | Z190: =Y190/$C189*100 -> 86.98686254 | AA190: =AA189+Y190 -> 2417693.88 | AB190: =AA190/$C189*100 -> 100
C193: CRONOGRAMA FÍSICO FINANCEIRO | AC193: UNAEN-FF-003
AC195: Revisão: 00 | AD195: Data: 11/05/2017
A196: SESI - SERVIÇO SOCIAL DA INDUSTRIA - DR/MT
A197: =A149 -> UNIDADE OPERACIONAL: SESI ESCOLA CUIABA | D197: =D149 -> ENDEREÇO: AV. OÁTOMO CANAVARROS, 1079, BAIRRO BELA VISTA CIDADE: CUIABÁ-MT
A198: ='[1]PLAN RESUMO'!$A$9:$E$9 -> CONSTRUTORA: | D198: =CONCATENATE(" VALOR: ","R$ ",TEXT(SUM(C237),"#.##0,00")) -> VALOR: R$ 180.251,24 | H198: PRAZO: 12 MESES
A199: ='[1]PLAN RESUMO'!$A$10:$E$10 -> RESPONSÁVEL TÉCNICO:
A201: QUADRA POLIESPORTIVA
A203: ITEM | B203: DESCRIÇÃO | C203: ETAPA TOTAL | E203: 1 MÊS | G203: 2 MESES | I203: 3 MESES | K203: 4 MESES | M203: 5 MESES | O203: 6 MESES | Q203: 7 MESES | S203: 8 MESES | U203: 9 MESES | W203: 10 MESES | Y203: 11 MESES | AA203: 12 MESES | AC203: TOTAL
C204: (R$) | D204: (%) | E204: (R$) | F204: (%) | G204: (R$) | H204: (%) | I204: (R$) | J204: (%) | K204: (R$) | L204: (%) | M204: (R$) | N204: (%) | O204: (R$) | P204: (%) | Q204: (R$) | R204: (%) | S204: (R$) | T204: (%) | U204: (R$) | V204: (%) | W204: (R$) | X204: (%) | Y204: (R$) | Z204: (%) | AA204: (R$) | AB204: (%) | AC204: (R$) | AD204: (%)
A205: 5.1 | B205: DEMOLIÇÕES E RETIRADAS | C205: 0 | D205: =C205/$C$45*100 -> 0 | E205: =F205*$C205/100 -> 0 | F205: 0 | G205: =H205*$C205/100 -> 0 | I205: =J205*$C205/100 -> 0 | K205: =L205*$C205/100 -> 0 | L205: 0 | M205: =N205*$C205/100 -> 0 | O205: =P205*$C205/100 -> 0 | Q205: =R205*$C205/100 -> 0 | S205: =T205*$C205/100 -> 0 | U205: =V205*$C205/100 -> 0 | W205: =X205*$C205/100 -> 0 | Y205: =Z205*$C205/100 -> 0 | AA205: =AB205*$C205/100 -> 0 | AC205: =AD205*$C205/100 -> 0 | AD205: =N205+L205+J205+H205+F205+P205+R205+T205+V205+X205+Z205+AB205 -> 0
A206: 5.2 | B206: CANTEIRO DE OBRAS | C206: 0 | D206: =C206/$C$45*100 -> 0 | E206: =F206*$C206/100 -> 0 | F206: 0 | G206: =H206*$C206/100 -> 0 | I206: =J206*$C206/100 -> 0 | K206: =L206*$C206/100 -> 0 | M206: =N206*$C206/100 -> 0 | O206: =P206*$C206/100 -> 0 | Q206: =R206*$C206/100 -> 0 | S206: =T206*$C206/100 -> 0 | U206: 0 | W206: 0 | Y206: 0 | AA206: 0 | AC206: =AD206*$C206/100 -> 0 | AD206: =N206+L206+J206+H206+F206+P206+R206+T206+V206+X206+Z206+AB206 -> 0
A207: 5.3 | B207: ADMINISTRAÇÃO | C207: 0 | D207: 0 | E207: 0 | F207: 0 | G207: =H207*$C207/100 -> 0 | I207: =J207*$C207/100 -> 0 | K207: =L207*$C207/100 -> 0 | M207: =N207*$C207/100 -> 0 | O207: =P207*$C207/100 -> 0 | Q207: =R207*$C207/100 -> 0 | S207: =T207*$C207/100 -> 0 | U207: 0 | W207: 0 | Y207: 0 | AA207: 0 | AC207: =AD207*$C207/100 -> 0 | AD207: 0
A208: 5.4 | B208: TERRAPLENAGEM | C208: 0 | D208: 0 | E208: 0 | F208: 0 | G208: 0 | I208: 0 | K208: 0 | M208: 0 | O208: 0 | Q208: 0 | S208: 0 | U208: 0 | W208: 0 | Y208: 0 | AA208: 0 | AC208: 0 | AD208: 0
A209: 5.5 | B209: FUNDAÇÃO | C209: 0 | D209: 0 | E209: 0 | F209: 0 | G209: 0 | I209: 0 | K209: 0 | M209: 0 | O209: 0 | Q209: 0 | S209: 0 | U209: 0 | W209: 0 | Y209: 0 | AA209: 0 | AC209: 0 | AD209: 0
A210: 5.6 | B210: IMPERMEABILIZAÇÃO | C210: 0 | D210: 0 | E210: 0 | F210: 0 | G210: 0 | I210: 0 | K210: 0 | M210: 0 | O210: 0 | Q210: 0 | S210: 0 | U210: 0 | W210: 0 | Y210: 0 | AA210: 0 | AC210: 0 | AD210: 0
A211: 5.7 | B211: ESTRUTURA DE CONCRETO ARMADO | C211: 0 | D211: 0 | E211: 0 | F211: 0 | G211: 0 | I211: 0 | K211: 0 | M211: 0 | O211: 0 | Q211: 0 | S211: 0 | U211: 0 | W211: 0 | Y211: 0 | AA211: 0 | AC211: 0 | AD211: 0
A212: 5.8 | B212: ALVENARIA E PAINÉIS | C212: 0 | D212: 0 | E212: 0 | F212: 0 | G212: 0 | I212: 0 | K212: 0 | M212: 0 | N212: 30 | O212: 0 | P212: 70 | Q212: 0 | S212: 0 | U212: 0 | W212: 0 | Y212: 0 | AA212: 0 | AC212: 0 | AD212: 100
A213: 5.9 | B213: ESTRUTURA METÁLICA | C213: 120244.44 | D213: 2.525670872 | E213: 0 | F213: 0 | G213: 0 | I213: 0 | K213: 0 | M213: 0 | O213: 0 | Q213: 36073.332 | R213: 30 | S213: 36073.332 | T213: 30 | U213: 48097.776 | V213: 40 | W213: 0 | Y213: 0 | AA213: 0 | AC213: 120244.44 | AD213: 100
A214: 5.10 | B214: COBERTURA | C214: 0 | D214: 0 | E214: 0 | F214: 0 | G214: 0 | I214: 0 | K214: 0 | M214: 0 | O214: 0 | Q214: 0 | S214: 0 | U214: 0 | W214: 0 | Y214: 0 | AA214: 0 | AC214: 0 | AD214: 0
A215: 5.11 | B215: ESQUADRIAS | C215: 56002.32 | D215: 1.176299115 | E215: 0 | F215: 0 | G215: 0 | I215: 0 | K215: 0 | M215: 0 | O215: 0 | Q215: 0 | S215: 0 | U215: 0 | W215: 56002.32 | X215: 100 | Y215: 0 | AA215: 0 | AC215: 56002.32 | AD215: 100
A216: 5.12 | B216: PISOS | C216: 0 | D216: 0 | E216: 0 | F216: 0 | G216: 0 | I216: 0 | K216: 0 | M216: 0 | O216: 0 | Q216: 0 | S216: 0 | U216: 0 | W216: 0 | Y216: 0 | AA216: 0 | AC216: 0 | AD216: 0
A217: 5.13 | B217: REVESTIMENTO | C217: 0 | D217: 0 | E217: 0 | F217: 0 | G217: 0 | I217: 0 | K217: 0 | M217: 0 | O217: 0 | Q217: 0 | S217: 0 | U217: 0 | W217: 0 | Y217: 0 | AA217: 0 | AC217: 0 | AD217: 0
A218: 5.14 | B218: GRANITO | C218: 0 | D218: 0 | E218: 0 | F218: 0 | G218: 0 | I218: 0 | K218: 0 | M218: 0 | O218: 0 | Q218: 0 | S218: 0 | U218: 0 | W218: 0 | Y218: 0 | AA218: 0 | AC218: 0 | AD218: 0
A219: 5.15 | B219: FORROS | C219: 0 | D219: 0 | E219: 0 | F219: 0 | G219: 0 | I219: 0 | K219: 0 | M219: 0 | O219: 0 | Q219: 0 | S219: 0 | U219: 0 | W219: 0 | Y219: 0 | AA219: 0 | AC219: 0 | AD219: 0
A220: 5.16 | B220: PINTURA | C220: 0 | D220: 0 | E220: 0 | F220: 0 | G220: 0 | I220: 0 | K220: 0 | M220: 0 | O220: 0 | Q220: 0 | S220: 0 | U220: 0 | W220: 0 | Y220: 0 | AA220: 0 | AC220: 0 | AD220: 0
A221: 5.17 | B221: CALÇAMENTO, PÁTIO E PASSARELAS | C221: 0 | D221: 0 | E221: 0 | F221: 0 | G221: 0 | I221: 0 | K221: 0 | M221: 0 | O221: 0 | Q221: 0 | S221: 0 | U221: 0 | W221: 0 | Y221: 0 | AA221: 0 | AC221: 0 | AD221: 0
A222: 5.18 | B222: SERVIÇOS COMPLEMENTARES | C222: 1435.03 | D222: 0.03014204624 | E222: 0 | F222: 0 | G222: 0 | I222: 0 | K222: 0 | M222: 0 | O222: 0 | Q222: 0 | S222: 0 | U222: 0 | W222: 1435.03 | X222: 100 | Y222: 0 | AA222: 0 | AC222: 1435.03 | AD222: 100
A223: 5.19 | B223: INSTALAÇÕES SPDA | C223: 2569.45 | D223: 0.05396993841 | E223: 0 | F223: 0 | G223: 0 | I223: 0 | K223: 0 | M223: 0 | O223: 0 | Q223: 0 | S223: 0 | U223: 0 | W223: 2569.45 | X223: 100 | Y223: 0 | AA223: 0 | AC223: 2569.45 | AD223: 100
... 101 more rows
